[Event "Titled Tuesday Blitz September 28 2021"]
[White "Korobov, Anton"]
[Black "Janaszak, Dawid"]
[WhiteFideId "14105730"]
[BlackFideId "1119206"]
[WhiteElo "2984"]
[BlackElo "2588"]
[Result "1-0"]
[Round "02"]
[TimeControl "180+1"]
[Date "2021.09.28"]
[WhiteClock "0:00:08"]
[BlackClock "0:00:01"]

1. d4 {[%clk 0:03:00]}  Nf6 {[%clk 0:02:59]} 2. c4 {[%clk 0:03:00]}  c5 {[%clk 0:02:59]} 3. d5 {[%clk 0:03:00]}  b5 {[%clk 0:03:00]} 4. cxb5 {[%clk 0:03:00]}  a6 {[%clk 0:03:00]} 5. bxa6 {[%clk 0:03:01]}  Bxa6 {[%clk 0:03:00]} 6. Nc3 {[%clk 0:03:01]}  d6 {[%clk 0:03:00]} 7. Bg5 {[%clk 0:02:56]}  Nbd7 {[%clk 0:02:38]} 8. e4 {[%clk 0:02:53]}  Bxf1 {[%clk 0:02:36]} 9. Kxf1 {[%clk 0:02:54]}  g6 {[%clk 0:02:37]} 10. Bxf6 {[%clk 0:02:50]}  Nxf6 {[%clk 0:02:37]} 11. Nf3 {[%clk 0:02:51]}  Bg7 {[%clk 0:02:37]} 12. g3 {[%clk 0:02:50]}  Qb6 {[%clk 0:02:34]} 13. Qc2 {[%clk 0:02:49]}  O-O {[%clk 0:02:32]} 14. Kg2 {[%clk 0:02:49]}  Rfb8 {[%clk 0:02:31]} 15. Rab1 {[%clk 0:02:48]}  Nd7 {[%clk 0:02:29]} 16. h4 {[%clk 0:02:46]}  Qa6 {[%clk 0:02:19]} 17. h5 {[%clk 0:02:32]}  c4 {[%clk 0:01:46]} 18. Qd2 {[%clk 0:01:28]}  Nf6 {[%clk 0:01:04]} 19. hxg6 {[%clk 0:01:25]}  hxg6 {[%clk 0:01:05]} 20. Nd4 {[%clk 0:01:23]}  Re8 {[%clk 0:00:48]} 21. a4 {[%clk 0:01:18]}  Qb6 {[%clk 0:00:40]} 22. Ndb5 {[%clk 0:01:12]}  e6 {[%clk 0:00:32]} 23. Rh4 {[%clk 0:01:09]}  exd5 {[%clk 0:00:32]} 24. exd5 {[%clk 0:01:10]}  Re7 {[%clk 0:00:22]} 25. Rxc4 {[%clk 0:01:03]}  Rae8 {[%clk 0:00:21]} 26. Rc6 {[%clk 0:01:03]}  Qb8 {[%clk 0:00:18]} 27. Nxd6 {[%clk 0:00:57]}  Rd8 {[%clk 0:00:18]} 28. Ndb5 {[%clk 0:00:57]}  Qb7 {[%clk 0:00:16]} 29. Kg1 {[%clk 0:00:51]}  Qxc6 {[%clk 0:00:15]} 30. dxc6 {[%clk 0:00:51]}  Rxd2 {[%clk 0:00:16]} 31. c7 {[%clk 0:00:52]}  Re8 {[%clk 0:00:13]} 32. Na7 {[%clk 0:00:47]}  Ng4 {[%clk 0:00:13]} 33. Ne4 {[%clk 0:00:37]}  Rc2 {[%clk 0:00:11]} 34. Nd6 {[%clk 0:00:33]}  Ree2 {[%clk 0:00:11]} 35. c8=Q+ {[%clk 0:00:27]}  Rxc8 {[%clk 0:00:11]} 36. Naxc8 {[%clk 0:00:28]}  Nxf2 {[%clk 0:00:06]} 37. Kf1 {[%clk 0:00:26]}  Rc2 {[%clk 0:00:06]} 38. a5 {[%clk 0:00:21]}  Ng4 {[%clk 0:00:06]} 39. a6 {[%clk 0:00:19]}  Nh2+ {[%clk 0:00:06]} 40. Ke1 {[%clk 0:00:19]}  Nf3+ {[%clk 0:00:07]} 41. Kd1 {[%clk 0:00:19]}  Rd2+ {[%clk 0:00:06]} 42. Kc1 {[%clk 0:00:19]}  Bh6 {[%clk 0:00:07]} 43. Ne4 {[%clk 0:00:16]}  Rd4+ {[%clk 0:00:04]} 44. Kc2 {[%clk 0:00:16]}  Rc4+ {[%clk 0:00:04]} 45. Kb3 {[%clk 0:00:11]}  Rxc8 {[%clk 0:00:05]} 46. a7 {[%clk 0:00:10]}  Nd4+ {[%clk 0:00:04]} 47. Ka4 {[%clk 0:00:06]}  Ra8 {[%clk 0:00:04]} 48. Rd1 {[%clk 0:00:06]}  Rxa7+ {[%clk 0:00:04]} 49. Kb4 {[%clk 0:00:07]}  Ne6 {[%clk 0:00:04]} 50. Kc4 {[%clk 0:00:07]}  Kg7 {[%clk 0:00:05]} 51. b4 {[%clk 0:00:07]}  Rc7+ {[%clk 0:00:05]} 52. Kb3 {[%clk 0:00:06]}  Be3 {[%clk 0:00:05]} 53. Nd6 {[%clk 0:00:06]}  Bf2 {[%clk 0:00:03]} 54. Ne8+ {[%clk 0:00:06]}  Kf8 {[%clk 0:00:01]} 55. Nxc7 {[%clk 0:00:07]}  Nxc7 {[%clk 0:00:02]} 56. Rd3 {[%clk 0:00:07]}  Ke7 {[%clk 0:00:01]} 57. Kc4 {[%clk 0:00:07]}  Ne6 {[%clk 0:00:01]} 58. b5 {[%clk 0:00:08]} 1-0


[Site "https://www.chess.com"]

[Event "Titled Tuesday Blitz September 28 2021"]
[White "Lashkin, Jegor"]
[Black "Rostovtsev, Dmitry"]
[WhiteFideId "13907808"]
[BlackFideId "34278320"]
[WhiteElo "2293"]
[BlackElo "2240"]
[Result "1-0"]
[Round "02"]
[TimeControl "180+1"]
[Date "2021.09.28"]
[WhiteClock "0:00:08"]
[BlackClock "0:00:01"]

1. a3 {[%clk 0:03:00]}  Nf6 {[%clk 0:02:57]} 2. d4 {[%clk 0:02:59]}  d5 {[%clk 0:02:57]} 3. Nf3 {[%clk 0:02:59]}  Bf5 {[%clk 0:02:55]} 4. c4 {[%clk 0:02:56]}  e6 {[%clk 0:02:53]} 5. Nc3 {[%clk 0:02:55]}  c6 {[%clk 0:02:51]} 6. Bg5 {[%clk 0:02:55]}  Nbd7 {[%clk 0:02:51]} 7. e3 {[%clk 0:02:56]}  h6 {[%clk 0:02:51]} 8. Bh4 {[%clk 0:02:54]}  Be7 {[%clk 0:02:51]} 9. Bd3 {[%clk 0:02:50]}  Bxd3 {[%clk 0:02:46]} 10. Qxd3 {[%clk 0:02:51]}  Qb6 {[%clk 0:02:47]} 11. O-O {[%clk 0:02:49]}  Qa6 {[%clk 0:02:43]} 12. b3 {[%clk 0:02:48]}  O-O {[%clk 0:02:42]} 13. e4 {[%clk 0:02:41]}  dxe4 {[%clk 0:02:06]} 14. Nxe4 {[%clk 0:02:41]}  Rad8 {[%clk 0:02:06]} 15. Qe2 {[%clk 0:02:39]}  Rfe8 {[%clk 0:02:05]} 16. Nc3 {[%clk 0:02:23]}  Qb6 {[%clk 0:01:53]} 17. b4 {[%clk 0:02:22]}  a5 {[%clk 0:01:48]} 18. c5 {[%clk 0:02:19]}  Qc7 {[%clk 0:01:38]} 19. Bg3 {[%clk 0:02:19]}  Qc8 {[%clk 0:01:26]} 20. bxa5 {[%clk 0:02:19]}  Qa8 {[%clk 0:01:25]} 21. Bc7 {[%clk 0:02:17]}  Rc8 {[%clk 0:01:24]} 22. Bb6 {[%clk 0:02:17]}  Nd5 {[%clk 0:01:09]} 23. Ne4 {[%clk 0:02:08]}  N7f6 {[%clk 0:01:01]} 24. Nxf6+ {[%clk 0:01:58]}  Bxf6 {[%clk 0:01:01]} 25. g3 {[%clk 0:01:57]}  Qb8 {[%clk 0:00:40]} 26. Rfe1 {[%clk 0:01:56]}  Qa8 {[%clk 0:00:33]} 27. Qc4 {[%clk 0:01:46]}  Nxb6 {[%clk 0:00:29]} 28. axb6 {[%clk 0:01:46]}  Red8 {[%clk 0:00:30]} 29. a4 {[%clk 0:01:11]}  Qa5 {[%clk 0:00:30]} 30. Reb1 {[%clk 0:01:08]}  Rd5 {[%clk 0:00:26]} 31. Ra3 {[%clk 0:00:56]}  Rcd8 {[%clk 0:00:24]} 32. Rd3 {[%clk 0:00:53]}  e5 {[%clk 0:00:21]} 33. Re1 {[%clk 0:00:47]}  exd4 {[%clk 0:00:19]} 34. Rc1 {[%clk 0:00:47]}  Ra8 {[%clk 0:00:17]} 35. Ra3 {[%clk 0:00:45]}  Rad8 {[%clk 0:00:13]} 36. Ne1 {[%clk 0:00:43]}  d3 {[%clk 0:00:12]} 37. Nxd3 {[%clk 0:00:43]}  Rd4 {[%clk 0:00:12]} 38. Qc2 {[%clk 0:00:42]}  Bg5 {[%clk 0:00:11]} 39. Rb1 {[%clk 0:00:39]}  Qa6 {[%clk 0:00:09]} 40. Rbb3 {[%clk 0:00:29]}  Qa5 {[%clk 0:00:07]} 41. Rc3 {[%clk 0:00:28]}  Bf6 {[%clk 0:00:06]} 42. Kg2 {[%clk 0:00:22]}  Qa8 {[%clk 0:00:06]} 43. a5 {[%clk 0:00:18]}  Qa6 {[%clk 0:00:06]} 44. Nf4 {[%clk 0:00:16]}  Rd1 {[%clk 0:00:05]} 45. Rd3 {[%clk 0:00:15]}  R1xd3 {[%clk 0:00:02]} 46. Nxd3 {[%clk 0:00:14]}  Rd4 {[%clk 0:00:02]} 47. Qe2 {[%clk 0:00:10]}  Qa8 {[%clk 0:00:02]} 48. a6 {[%clk 0:00:08]}  bxa6 {[%clk 0:00:02]} 49. Nf4 {[%clk 0:00:09]}  Qb7 {[%clk 0:00:02]} 50. Qxa6 {[%clk 0:00:09]}  Qd7 {[%clk 0:00:02]} 51. Qe2 {[%clk 0:00:08]}  g5 {[%clk 0:00:01]} 52. Ra8+ {[%clk 0:00:07]}  Kh7 {[%clk 0:00:01]} 53. Qc2+ {[%clk 0:00:07]}  Kg7 {[%clk 0:00:01]} 54. Nh5# {[%clk 0:00:08]} 1-0


[Site "https://www.chess.com"]

[Event "Titled Tuesday Blitz September 28 2021"]
[White "Maksimenko, Viktor"]
[Black "Perez Ponsa, Federico"]
[WhiteFideId "13710478"]
[BlackFideId "117927"]
[WhiteElo "2269"]
[BlackElo "2672"]
[Result "0-1"]
[Round "02"]
[TimeControl "180+1"]
[Date "2021.09.28"]
[WhiteClock "0:00:54"]
[BlackClock "0:01:37"]

1. d4 {[%clk 0:03:00]}  Nf6 {[%clk 0:02:58]} 2. c4 {[%clk 0:03:00]}  e6 {[%clk 0:02:59]} 3. Nf3 {[%clk 0:02:59]}  d5 {[%clk 0:02:59]} 4. g3 {[%clk 0:02:59]}  Be7 {[%clk 0:02:58]} 5. Bg2 {[%clk 0:03:00]}  O-O {[%clk 0:02:59]} 6. O-O {[%clk 0:03:01]}  dxc4 {[%clk 0:02:59]} 7. Qc2 {[%clk 0:03:01]}  a6 {[%clk 0:02:59]} 8. a4 {[%clk 0:03:02]}  Bd7 {[%clk 0:02:50]} 9. Qxc4 {[%clk 0:03:01]}  Bc6 {[%clk 0:02:50]} 10. Bf4 {[%clk 0:03:01]}  Nbd7 {[%clk 0:02:48]} 11. Qc1 {[%clk 0:02:59]}  Bd6 {[%clk 0:02:45]} 12. Nc3 {[%clk 0:02:59]}  a5 {[%clk 0:02:45]} 13. Re1 {[%clk 0:02:53]}  Qe7 {[%clk 0:02:42]} 14. e4 {[%clk 0:02:44]}  Bxf4 {[%clk 0:02:39]} 15. Qxf4 {[%clk 0:02:43]}  Qb4 {[%clk 0:02:30]} 16. Re2 {[%clk 0:02:19]}  Nb6 {[%clk 0:02:13]} 17. Ne5 {[%clk 0:02:14]}  Qxd4 {[%clk 0:02:10]} 18. Nxc6 {[%clk 0:01:59]}  bxc6 {[%clk 0:02:11]} 19. Ree1 {[%clk 0:01:54]}  e5 {[%clk 0:02:07]} 20. Qf3 {[%clk 0:01:49]}  Rab8 {[%clk 0:02:03]} 21. Rad1 {[%clk 0:01:45]}  Qb4 {[%clk 0:02:03]} 22. Re2 {[%clk 0:01:46]}  Nxa4 {[%clk 0:02:00]} 23. Nxa4 {[%clk 0:01:35]}  Qxa4 {[%clk 0:02:01]} 24. Rc1 {[%clk 0:01:36]}  Rfd8 {[%clk 0:01:56]} 25. Rec2 {[%clk 0:01:34]}  Rd6 {[%clk 0:01:52]} 26. h3 {[%clk 0:01:29]}  h6 {[%clk 0:01:52]} 27. Kh2 {[%clk 0:01:29]}  Rb3 {[%clk 0:01:49]} 28. Qe2 {[%clk 0:01:27]}  Qb5 {[%clk 0:01:48]} 29. Qxb5 {[%clk 0:01:07]}  cxb5 {[%clk 0:01:48]} 30. Rxc7 {[%clk 0:01:07]}  Rxb2 {[%clk 0:01:48]} 31. Kg1 {[%clk 0:01:01]}  a4 {[%clk 0:01:48]} 32. Ra7 {[%clk 0:01:01]}  Rdd2 {[%clk 0:01:47]} 33. Rcc7 {[%clk 0:01:00]}  Rxf2 {[%clk 0:01:46]} 34. Bf1 {[%clk 0:01:00]}  Nh5 {[%clk 0:01:38]} 35. Rab7 {[%clk 0:00:54]}  Nxg3 {[%clk 0:01:37]} 36. Bxb5 {[%clk 0:00:54]}  Rg2# {[%clk 0:01:37]} 0-1


[Site "https://www.chess.com"]

[Event "Titled Tuesday Blitz September 28 2021"]
[White "Manafov, Vugar"]
[Black "Aghasiyev, Kamal"]
[WhiteFideId "13410814"]
[BlackFideId "13402854"]
[WhiteElo "2274"]
[BlackElo "2210"]
[Result "0-1"]
[Round "02"]
[TimeControl "180+1"]
[Date "2021.09.28"]
[WhiteClock "0:00:02"]
[BlackClock "0:00:09"]

1. d4 {[%clk 0:03:00]}  d5 {[%clk 0:02:58]} 2. c4 {[%clk 0:03:00]}  e6 {[%clk 0:02:58]} 3. Nc3 {[%clk 0:02:59]}  Nf6 {[%clk 0:02:59]} 4. Nf3 {[%clk 0:02:58]}  Be7 {[%clk 0:02:58]} 5. Bf4 {[%clk 0:02:58]}  O-O {[%clk 0:02:57]} 6. e3 {[%clk 0:02:59]}  b6 {[%clk 0:02:57]} 7. cxd5 {[%clk 0:02:56]}  Nxd5 {[%clk 0:02:57]} 8. Nxd5 {[%clk 0:02:56]}  Qxd5 {[%clk 0:02:58]} 9. Bd3 {[%clk 0:02:56]}  Qa5+ {[%clk 0:02:14]} 10. Nd2 {[%clk 0:02:51]}  Ba6 {[%clk 0:02:08]} 11. Bxa6 {[%clk 0:02:43]}  Nxa6 {[%clk 0:01:59]} 12. O-O {[%clk 0:02:42]}  c5 {[%clk 0:01:57]} 13. Nb3 {[%clk 0:02:18]}  Qa4 {[%clk 0:01:48]} 14. Qg4 {[%clk 0:02:17]}  Bf6 {[%clk 0:01:37]} 15. Qg3 {[%clk 0:01:50]}  cxd4 {[%clk 0:01:20]} 16. Nxd4 {[%clk 0:01:51]}  Nc5 {[%clk 0:01:21]} 17. b3 {[%clk 0:01:43]}  Qa6 {[%clk 0:01:15]} 18. Rfd1 {[%clk 0:01:27]}  Ne4 {[%clk 0:01:11]} 19. Qf3 {[%clk 0:01:25]}  Nc3 {[%clk 0:01:07]} 20. Rd2 {[%clk 0:01:18]}  e5 {[%clk 0:01:03]} 21. Rc1 {[%clk 0:00:46]}  exd4 {[%clk 0:00:57]} 22. exd4 {[%clk 0:00:47]}  Nb5 {[%clk 0:00:38]} 23. Qd3 {[%clk 0:00:43]}  Qa3 {[%clk 0:00:34]} 24. Rc6 {[%clk 0:00:33]}  Rae8 {[%clk 0:00:15]} 25. h3 {[%clk 0:00:24]}  Qb4 {[%clk 0:00:11]} 26. Rxf6 {[%clk 0:00:19]}  gxf6 {[%clk 0:00:09]} 27. Bh6 {[%clk 0:00:19]}  Kh8 {[%clk 0:00:05]} 28. Qf5 {[%clk 0:00:15]}  Qd6 {[%clk 0:00:04]} 29. g3 {[%clk 0:00:08]}  Rg8 {[%clk 0:00:03]} 30. Rd3 {[%clk 0:00:08]}  Nxd4 {[%clk 0:00:02]} 31. Qh5 {[%clk 0:00:04]}  Qe5 {[%clk 0:00:02]} 32. Qh4 {[%clk 0:00:02]}  Qe1+ {[%clk 0:00:03]} 33. Kg2 {[%clk 0:00:02]}  Qe4+ {[%clk 0:00:03]} 34. Qxe4 {[%clk 0:00:02]}  Rxe4 {[%clk 0:00:04]} 35. Be3 {[%clk 0:00:02]}  Nf5 {[%clk 0:00:04]} 36. Bd2 {[%clk 0:00:02]}  Rd4 {[%clk 0:00:05]} 37. Rxd4 {[%clk 0:00:02]}  Nxd4 {[%clk 0:00:05]} 38. Bc3 {[%clk 0:00:03]}  Rd8 {[%clk 0:00:06]} 39. Bb4 {[%clk 0:00:03]}  Kg7 {[%clk 0:00:06]} 40. Be7 {[%clk 0:00:03]}  Rd7 {[%clk 0:00:06]} 41. Bb4 {[%clk 0:00:03]}  Ne6 {[%clk 0:00:07]} 42. Bc3 {[%clk 0:00:03]}  a5 {[%clk 0:00:08]} 43. g4 {[%clk 0:00:03]}  Kg6 {[%clk 0:00:09]} 44. h4 {[%clk 0:00:04]}  f5 {[%clk 0:00:10]} 45. g5 {[%clk 0:00:02]}  Nf4+ {[%clk 0:00:09]} 46. Kf3 {[%clk 0:00:02]}  Rd3+ {[%clk 0:00:09]} 0-1


[Site "https://www.chess.com"]

[Event "Titled Tuesday Blitz September 28 2021"]
[White "Martin Carmona, Gaston Manuel"]
[Black "Stribuk, Artiom"]
[WhiteFideId "22284567"]
[BlackFideId "13515659"]
[WhiteElo "2161"]
[BlackElo "2224"]
[Result "0-1"]
[Round "02"]
[TimeControl "180+1"]
[Date "2021.09.28"]
[WhiteClock "0:00:11"]
[BlackClock "0:00:06"]

1. e4 {[%clk 0:03:00]}  c5 {[%clk 0:02:57]} 2. Nf3 {[%clk 0:03:00]}  Nc6 {[%clk 0:02:57]} 3. d4 {[%clk 0:02:59]}  cxd4 {[%clk 0:02:58]} 4. Nxd4 {[%clk 0:02:59]}  Nf6 {[%clk 0:02:58]} 5. Nc3 {[%clk 0:02:59]}  e5 {[%clk 0:02:58]} 6. Ndb5 {[%clk 0:02:59]}  d6 {[%clk 0:02:58]} 7. Bg5 {[%clk 0:02:39]}  a6 {[%clk 0:02:57]} 8. Na3 {[%clk 0:02:23]}  b5 {[%clk 0:02:55]} 9. Bxf6 {[%clk 0:02:24]}  gxf6 {[%clk 0:02:54]} 10. Nd5 {[%clk 0:02:25]}  f5 {[%clk 0:02:52]} 11. Bd3 {[%clk 0:02:18]}  Be6 {[%clk 0:02:50]} 12. c3 {[%clk 0:02:19]}  Bg7 {[%clk 0:02:42]} 13. Nxb5 {[%clk 0:02:18]}  axb5 {[%clk 0:02:38]} 14. Bxb5 {[%clk 0:02:16]}  Bd7 {[%clk 0:02:25]} 15. exf5 {[%clk 0:02:12]}  O-O {[%clk 0:02:23]} 16. O-O {[%clk 0:02:00]}  Re8 {[%clk 0:02:20]} 17. Qg4 {[%clk 0:01:53]}  Kh8 {[%clk 0:01:50]} 18. Qe4 {[%clk 0:01:52]}  Rb8 {[%clk 0:01:41]} 19. a4 {[%clk 0:01:47]}  Qg5 {[%clk 0:01:32]} 20. h4 {[%clk 0:01:09]}  Qh5 {[%clk 0:01:03]} 21. f6 {[%clk 0:01:08]}  Bh6 {[%clk 0:00:56]} 22. Rfd1 {[%clk 0:00:55]}  Rg8 {[%clk 0:00:47]} 23. Be2 {[%clk 0:00:45]}  Bg4 {[%clk 0:00:41]} 24. f3 {[%clk 0:00:44]}  Bf5 {[%clk 0:00:36]} 25. Qc4 {[%clk 0:00:42]}  Rxb2 {[%clk 0:00:33]} 26. Ne7 {[%clk 0:00:27]}  Nxe7 {[%clk 0:00:20]} 27. fxe7 {[%clk 0:00:28]}  Be3+ {[%clk 0:00:20]} 28. Kf1 {[%clk 0:00:28]}  Bh3 {[%clk 0:00:16]} 29. e8=Q {[%clk 0:00:18]}  Bxg2+ {[%clk 0:00:16]} 30. Ke1 {[%clk 0:00:18]}  Rxe8 {[%clk 0:00:17]} 31. Qe4 {[%clk 0:00:17]}  Qg6 {[%clk 0:00:15]} 32. Qxe3 {[%clk 0:00:15]}  Qg3+ {[%clk 0:00:11]} 33. Qf2 {[%clk 0:00:16]}  Qh2 {[%clk 0:00:12]} 34. Rd2 {[%clk 0:00:13]}  Qh1+ {[%clk 0:00:11]} 35. Bf1 {[%clk 0:00:14]}  Bxf1 {[%clk 0:00:07]} 36. Rxb2 {[%clk 0:00:14]}  Bc4+ {[%clk 0:00:07]} 37. Kd2 {[%clk 0:00:13]}  Qxa1 {[%clk 0:00:08]} 38. Qb6 {[%clk 0:00:12]}  Qf1 {[%clk 0:00:07]} 39. Qe3 {[%clk 0:00:11]}  Rg8 {[%clk 0:00:06]} 0-1


[Site "https://www.chess.com"]

[Event "Titled Tuesday Blitz September 28 2021"]
[White "Maze, Sebastien"]
[Black "Pasti, Aron"]
[WhiteFideId "613762"]
[BlackFideId "785857"]
[WhiteElo "2462"]
[BlackElo "2080"]
[Result "0-1"]
[Round "02"]
[TimeControl "180+1"]
[Date "2021.09.28"]
[WhiteClock "0:00:06"]
[BlackClock "0:00:06"]

1. e4 {[%clk 0:03:00]}  c5 {[%clk 0:02:57]} 2. Nf3 {[%clk 0:02:56]}  e6 {[%clk 0:02:57]} 3. c4 {[%clk 0:02:52]}  Nc6 {[%clk 0:02:57]} 4. Nc3 {[%clk 0:02:52]}  Nd4 {[%clk 0:02:58]} 5. Nxd4 {[%clk 0:02:51]}  cxd4 {[%clk 0:02:58]} 6. Ne2 {[%clk 0:02:52]}  Qb6 {[%clk 0:02:51]} 7. Ng3 {[%clk 0:02:50]}  Ne7 {[%clk 0:02:48]} 8. Bd3 {[%clk 0:02:49]}  Nc6 {[%clk 0:02:48]} 9. Bc2 {[%clk 0:02:48]}  g6 {[%clk 0:02:47]} 10. O-O {[%clk 0:02:47]}  h5 {[%clk 0:02:47]} 11. d3 {[%clk 0:02:46]}  h4 {[%clk 0:02:46]} 12. Ne2 {[%clk 0:02:46]}  h3 {[%clk 0:02:29]} 13. g3 {[%clk 0:02:45]}  Bg7 {[%clk 0:02:27]} 14. a3 {[%clk 0:02:43]}  O-O {[%clk 0:02:26]} 15. b4 {[%clk 0:02:42]}  d5 {[%clk 0:02:26]} 16. exd5 {[%clk 0:02:37]}  exd5 {[%clk 0:02:27]} 17. c5 {[%clk 0:02:37]}  Qd8 {[%clk 0:02:23]} 18. Bf4 {[%clk 0:02:30]}  Ne5 {[%clk 0:02:14]} 19. Bxe5 {[%clk 0:02:29]}  Bxe5 {[%clk 0:02:15]} 20. Qd2 {[%clk 0:02:28]}  Bf5 {[%clk 0:02:02]} 21. Kh1 {[%clk 0:02:26]}  Qf6 {[%clk 0:01:58]} 22. Ng1 {[%clk 0:02:25]}  Bg4 {[%clk 0:01:49]} 23. Bd1 {[%clk 0:02:23]}  Be6 {[%clk 0:01:37]} 24. Bf3 {[%clk 0:02:10]}  Qg7 {[%clk 0:01:36]} 25. Rfe1 {[%clk 0:02:08]}  Rfe8 {[%clk 0:01:32]} 26. Re2 {[%clk 0:02:07]}  g5 {[%clk 0:01:20]} 27. Rae1 {[%clk 0:02:02]}  f6 {[%clk 0:01:21]} 28. Nxh3 {[%clk 0:01:40]}  Bxh3 {[%clk 0:00:38]} 29. Bxd5+ {[%clk 0:01:39]}  Kh8 {[%clk 0:00:37]} 30. f4 {[%clk 0:01:36]}  Qd7 {[%clk 0:00:37]} 31. Bf3 {[%clk 0:01:27]}  gxf4 {[%clk 0:00:33]} 32. gxf4 {[%clk 0:01:27]}  Bc7 {[%clk 0:00:33]} 33. f5 {[%clk 0:01:20]}  Be5 {[%clk 0:00:27]} 34. Re4 {[%clk 0:01:14]}  Bxf5 {[%clk 0:00:21]} 35. Rh4+ {[%clk 0:01:12]}  Bh7 {[%clk 0:00:19]} 36. Qh6 {[%clk 0:00:55]}  Re7 {[%clk 0:00:13]} 37. Be4 {[%clk 0:00:46]}  Rg8 {[%clk 0:00:09]} 38. Rf1 {[%clk 0:00:41]}  Reg7 {[%clk 0:00:08]} 39. Rh3 {[%clk 0:00:17]}  f5 {[%clk 0:00:08]} 40. c6 {[%clk 0:00:15]}  bxc6 {[%clk 0:00:05]} 41. Bxc6 {[%clk 0:00:16]}  Qe7 {[%clk 0:00:04]} 42. Bd5 {[%clk 0:00:15]}  Rf8 {[%clk 0:00:03]} 43. Bf3 {[%clk 0:00:11]}  Qg5 {[%clk 0:00:03]} 44. Qxg5 {[%clk 0:00:10]}  Rxg5 {[%clk 0:00:04]} 45. Re1 {[%clk 0:00:11]}  Bf6 {[%clk 0:00:04]} 46. Re6 {[%clk 0:00:10]}  Bg7 {[%clk 0:00:04]} 47. Rg3 {[%clk 0:00:09]}  Rxg3 {[%clk 0:00:04]} 48. hxg3 {[%clk 0:00:10]}  f4 {[%clk 0:00:04]} 49. g4 {[%clk 0:00:09]}  Bxd3 {[%clk 0:00:04]} 50. Re7 {[%clk 0:00:09]}  Kg8 {[%clk 0:00:04]} 51. Rxa7 {[%clk 0:00:08]}  Bg6 {[%clk 0:00:04]} 52. b5 {[%clk 0:00:06]}  d3 {[%clk 0:00:04]} 53. b6 {[%clk 0:00:07]}  d2 {[%clk 0:00:03]} 54. Rd7 {[%clk 0:00:05]}  Bc3 {[%clk 0:00:04]} 55. b7 {[%clk 0:00:05]}  Rb8 {[%clk 0:00:04]} 56. Rc7 {[%clk 0:00:05]}  Be5 {[%clk 0:00:02]} 57. Rc8+ {[%clk 0:00:03]}  Kg7 {[%clk 0:00:02]} 58. Kg2 {[%clk 0:00:03]}  Bc2 {[%clk 0:00:02]} 59. Rxc2 {[%clk 0:00:02]}  Bd6 {[%clk 0:00:02]} 60. Rxd2 {[%clk 0:00:02]}  Bxa3 {[%clk 0:00:02]} 61. Rd6 {[%clk 0:00:03]}  Bxd6 {[%clk 0:00:02]} 62. Be4 {[%clk 0:00:03]}  Bc7 {[%clk 0:00:02]} 63. Kf3 {[%clk 0:00:04]}  Kf6 {[%clk 0:00:03]} 64. Bd5 {[%clk 0:00:04]}  Kg5 {[%clk 0:00:03]} 65. Be4 {[%clk 0:00:05]}  Rd8 {[%clk 0:00:03]} 66. Bc6 {[%clk 0:00:05]}  Bb8 {[%clk 0:00:04]} 67. Ke4 {[%clk 0:00:06]}  Rd6 {[%clk 0:00:04]} 68. Bd5 {[%clk 0:00:06]}  Rb6 {[%clk 0:00:04]} 69. Kf3 {[%clk 0:00:06]}  Rb4 {[%clk 0:00:04]} 70. Bc6 {[%clk 0:00:06]}  Rc4 {[%clk 0:00:05]} 71. Bd5 {[%clk 0:00:06]}  Rc3+ {[%clk 0:00:05]} 72. Ke4 {[%clk 0:00:06]}  Kxg4 {[%clk 0:00:06]} 0-1


[Site "https://www.chess.com"]

[Event "Titled Tuesday Blitz September 28 2021"]
[White "Moroni, Luca Jr"]
[Black "Petesch, Gabriel"]
[WhiteFideId "865834"]
[BlackFideId "2032465"]
[WhiteElo "2491"]
[BlackElo "2374"]
[Result "1-0"]
[Round "02"]
[TimeControl "180+1"]
[Date "2021.09.28"]
[WhiteClock "0:00:09"]
[BlackClock "0:00:01"]

1. d4 {[%clk 0:03:00]}  Nf6 {[%clk 0:02:54]} 2. c4 {[%clk 0:03:00]}  e6 {[%clk 0:02:51]} 3. Nc3 {[%clk 0:03:00]}  Bb4 {[%clk 0:02:45]} 4. Nf3 {[%clk 0:03:00]}  b6 {[%clk 0:02:43]} 5. Qb3 {[%clk 0:03:00]}  c5 {[%clk 0:02:23]} 6. dxc5 {[%clk 0:03:00]}  Bxc5 {[%clk 0:02:22]} 7. Bf4 {[%clk 0:03:00]}  O-O {[%clk 0:02:19]} 8. e3 {[%clk 0:03:00]}  Bb7 {[%clk 0:02:13]} 9. Rd1 {[%clk 0:02:59]}  d5 {[%clk 0:02:07]} 10. cxd5 {[%clk 0:02:55]}  exd5 {[%clk 0:02:00]} 11. Be2 {[%clk 0:02:55]}  h6 {[%clk 0:01:47]} 12. O-O {[%clk 0:02:54]}  Qe7 {[%clk 0:01:43]} 13. Nd4 {[%clk 0:02:45]}  Nbd7 {[%clk 0:01:29]} 14. a3 {[%clk 0:02:26]}  Bxd4 {[%clk 0:01:18]} 15. Rxd4 {[%clk 0:02:24]}  Nc5 {[%clk 0:01:19]} 16. Qc2 {[%clk 0:02:16]}  Ne6 {[%clk 0:01:17]} 17. Rd2 {[%clk 0:01:40]}  d4 {[%clk 0:01:16]} 18. Nb5 {[%clk 0:01:38]}  Nd5 {[%clk 0:00:58]} 19. Bd6 {[%clk 0:00:52]}  Qg5 {[%clk 0:00:57]} 20. h4 {[%clk 0:00:52]}  Qxh4 {[%clk 0:00:28]} 21. Nxd4 {[%clk 0:00:51]}  Nxd4 {[%clk 0:00:12]} 22. Rxd4 {[%clk 0:00:51]}  Qg5 {[%clk 0:00:04]} 23. Bf3 {[%clk 0:00:50]}  Rfd8 {[%clk 0:00:02]} 24. Bg3 {[%clk 0:00:29]}  Rac8 {[%clk 0:00:02]} 25. Qd2 {[%clk 0:00:27]}  h5 {[%clk 0:00:02]} 26. Rd1 {[%clk 0:00:22]}  h4 {[%clk 0:00:02]} 27. Bxh4 {[%clk 0:00:12]}  Qf5 {[%clk 0:00:02]} 28. Bxd8 {[%clk 0:00:11]}  Rc2 {[%clk 0:00:02]} 29. e4 {[%clk 0:00:08]}  Rxd2 {[%clk 0:00:02]} 30. exf5 {[%clk 0:00:08]}  Rxd1+ {[%clk 0:00:01]} 31. Rxd1 {[%clk 0:00:09]} 1-0


[Site "https://www.chess.com"]